fUST/lending_fUST_20250723
["ID","MTS","AMOUNT","RATE_DAILY","PERIOD"]
[374361964,1753279841828,-460.0,0.00019452,2]
[374361966,1753279841838,-460.0,0.00019452,2]
[374361968,1753279841847,-4461.85,0.00019452,2]
[374361970,1753279841858,-460.0,0.00019452,2]
[374361972,1753279841868,-460.0,0.00019452,2]
[374361974,1753279841877,-460.0,0.00019452,2]
[374361976,1753279841887,-460.0,0.00019452,2]
[374361978,1753279841896,-460.0,0.00019452,2]
[374361980,1753279841905,-460.0,0.00019452,2]
[374361982,1753279841915,-460.0,0.00019452,2]
[374361984,1753279841925,-460.0,0.00019452,2]
[374361986,1753279841936,-460.0,0.00019452,2]
[374361988,1753279841946,-460.0,0.00019452,2]
[374361990,1753279841955,-460.0,0.00019452,2]
[374361992,1753279841965,-776.97,0.00019452,2]
[374361994,1753279841974,-460.0,0.00019452,2]
[374361996,1753279841984,-460.0,0.00019452,2]
[374361998,1753279841994,-460.0,0.00019452,2]
[374362000,1753279842003,-460.0,0.00019452,2]
[374362003,1753279842012,-460.0,0.00019452,2]
[374362005,1753279842022,-460.0,0.00019452,2]
[374362007,1753279842031,-460.0,0.00019452,2]
[374362008,1753279842041,-460.0,0.00019452,2]
[374362010,1753279842051,-460.0,0.00019452,2]
[374362012,1753279842061,-512.7,0.00019452,2]
[374362014,1753279842070,-460.0,0.00019452,2]
[374362016,1753279842079,-460.0,0.00019452,2]
[374362018,1753279842089,-460.0,0.00019452,2]
[374362020,1753279842099,-460.0,0.00019452,2]
[374362022,1753279842108,-460.0,0.00019452,2]
[374362024,1753279842118,-943.52,0.00019452,2]
[374362026,1753279842127,-460.0,0.00019452,2]
[374362028,1753279842137,-460.0,0.00019452,2]
[374362030,1753279842146,-409.66114591,0.00019452,2]
[374362032,1753279842156,-460.0,0.00019452,2]
[374362034,1753279842166,-460.0,0.00019452,2]
[374362036,1753279842176,-460.0,0.00019452,2]
[374362038,1753279842186,-346.08936957,0.00019452,2]
[374362040,1753279842196,-460.0,0.00019452,2]
[374362043,1753279842205,-460.0,0.00019452,2]
[374362044,1753279842215,-460.0,0.00019452,2]
[374362046,1753279842224,-460.0,0.00019452,2]
[374362049,1753279842234,-460.0,0.00019452,2]
[374362050,1753279842243,-460.0,0.00019452,2]
[374362052,1753279842253,-460.0,0.00019452,2]
[374362055,1753279842263,-460.0,0.00019452,2]
[374362056,1753279842272,-460.0,0.00019452,2]
[374362058,1753279842281,-460.0,0.00019452,2]
[374362060,1753279842291,-1021.86,0.00019452,2]
[374362063,1753279842300,-460.0,0.00019452,2]
[374362065,1753279842310,-460.0,0.00019452,2]
[374362067,1753279842319,-460.0,0.00019452,2]
[374362069,1753279842329,-460.0,0.00019452,2]
[374362071,1753279842338,-460.0,0.00019452,2]
[374362073,1753279842347,-460.0,0.00019452,2]
[374362075,1753279842356,-460.0,0.00019452,2]
[374362077,1753279842366,-460.0,0.00019452,2]
[374362079,1753279842376,-662.95,0.00019452,2]
[374362081,1753279842385,-460.0,0.00019452,2]
[374362083,1753279842394,-644.9,0.00019452,2]
[374362085,1753279842403,-500.0,0.00019473,2]
[374362087,1753279842414,-492.9,0.00019726,2]
[374362089,1753279842426,-460.0,0.00019726,2]
[374362092,1753279842437,-460.0,0.00019726,2]
[374362095,1753279842446,-460.0,0.00019726,2]
[374362097,1753279842456,-774.0,0.00019726,2]
[374362099,1753279842466,-460.0,0.00019726,2]
[374362101,1753279842475,-460.0,0.00019726,2]
[374362103,1753279842484,-460.0,0.00019726,2]
[374362105,1753279842494,-460.0,0.00019726,2]
[374362108,1753279842505,-481.24664277,0.00019726,2]
[374362110,1753279842514,-460.0,0.00019726,2]
[374362113,1753279842523,-460.0,0.00019726,2]
[374362114,1753279842533,-460.0,0.00019726,2]
[374362116,1753279842542,-460.0,0.00019726,2]
[374362119,1753279842552,-460.0,0.00019726,2]
[374362120,1753279842561,-460.0,0.00019726,2]
[374362123,1753279842570,-460.0,0.00019726,2]
[374362125,1753279842580,-460.0,0.00019726,2]
[374362127,1753279842590,-460.0,0.00019726,2]
[374362128,1753279842599,-460.0,0.00019726,2]
[374362130,1753279842608,-460.0,0.00019726,2]
[374362133,1753279842618,-460.0,0.00019726,2]
[374362135,1753279842628,-460.0,0.00019726,2]
[374362138,1753279842637,-460.0,0.00019726,2]
[374362140,1753279842646,-460.0,0.00019726,2]
[374362142,1753279842656,-460.0,0.00019726,2]
[374362144,1753279842665,-460.0,0.00019726,2]
[374362146,1753279842675,-460.0,0.00019726,2]
[374362148,1753279842686,-460.0,0.00019726,2]
[374362150,1753279842695,-460.0,0.00019726,2]
[374362152,1753279842705,-460.0,0.00019726,2]
[374362154,1753279842715,-460.0,0.00019726,2]
[374362156,1753279842724,-460.0,0.00019726,2]
[374362158,1753279842733,-460.0,0.00019726,2]
[374362160,1753279842742,-460.0,0.00019726,2]
[374362162,1753279842752,-476.40030117,0.00019726,2]
[374362164,1753279842761,-460.0,0.00019726,2]
[374362166,1753279842771,-460.0,0.00019726,2]
[374362168,1753279842780,-460.0,0.00019726,2]
[374362170,1753279842790,-460.0,0.00019726,2]
[374362172,1753279842800,-4461.85,0.00019726,2]
[374362174,1753279842810,-460.0,0.00019726,2]
[374362176,1753279842819,-460.0,0.00019726,2]
[374362178,1753279842829,-460.0,0.00019726,2]
[374362180,1753279842838,-460.0,0.00019726,2]
[374362182,1753279842847,-460.0,0.00019726,2]
[374362184,1753279842856,-460.0,0.00019726,2]
[374362186,1753279842866,-460.0,0.00019726,2]
[374362188,1753279842876,-776.97,0.00019726,2]
[374362190,1753279842886,-354.37143424,0.00019726,2]
[374362192,1753279842895,-460.0,0.00019726,2]
[374362194,1753279842905,-460.0,0.00019726,2]
[374362196,1753279842915,-519.30453808,0.00019726,2]
[374362198,1753279842923,-943.52,0.00019726,2]
[374362200,1753279842934,-460.0,0.00019726,2]
[374362202,1753279842944,-460.0,0.00019726,2]
[374362204,1753279842953,-460.0,0.00019726,2]
[374362206,1753279842962,-460.0,0.00019726,2]
[374362208,1753279842972,-460.0,0.00019726,2]
[374362210,1753279842981,-460.0,0.00019726,2]
[374362212,1753279842990,-460.0,0.00019726,2]
[374362214,1753279842999,-460.0,0.00019726,2]
[374362215,1753279843008,-460.0,0.00019726,2]
[374362217,1753279843017,-460.0,0.00019726,2]
[374362219,1753279843026,-460.0,0.00019726,2]
[374362221,1753279843036,-460.0,0.00019726,2]
[374362223,1753279843045,-1021.86,0.00019726,2]
[374362225,1753279843054,-460.0,0.00019726,2]
[374362227,1753279843063,-460.0,0.00019726,2]
[374362229,1753279843072,-460.0,0.00019726,2]
[374362231,1753279843081,-460.0,0.00019726,2]
[374362233,1753279843091,-460.0,0.00019726,2]
[374362235,1753279843099,-460.0,0.00019726,2]
[374362237,1753279843109,-662.95,0.00019726,2]
[374362239,1753279843118,-460.0,0.00019726,2]
[374362241,1753279843127,-644.9,0.00019726,2]
[374362243,1753279843136,-492.9,0.0002,2]
[374362246,1753279843146,-200.0,0.0002,2]
[374362248,1753279843156,-460.0,0.0002,2]
[374362251,1753279843165,-460.0,0.0002,2]
[374362254,1753279843176,-774.0,0.0002,2]
[374362256,1753279843191,-460.0,0.0002,2]
[374362258,1753279843201,-460.0,0.0002,2]
[374362260,1753279843211,-192.96755247,0.0002,2]
[374362262,1753279843221,-535.71956193,0.0002,2]
[374362264,1753279843231,-460.0,0.0002,2]
[374362266,1753279843240,-460.0,0.0002,2]
[374362268,1753279843250,-460.0,0.0002,2]
[374362270,1753279843259,-460.0,0.0002,2]
[374362284,1753279843394,-460.0,0.0002,2]
[374362286,1753279843404,-460.0,0.0002,2]
[374362288,1753279843414,-460.0,0.0002,2]
[374362290,1753279843426,-460.0,0.0002,2]
[374362292,1753279843440,-460.0,0.0002,2]
[374362294,1753279843450,-460.0,0.0002,2]
[374362296,1753279843459,-460.0,0.0002,2]
[374362298,1753279843468,-460.0,0.0002,2]
[374362300,1753279843477,-571.91,0.0002,2]
[374362302,1753279843487,-361.90577968,0.0002,2]
[374362304,1753279843496,-460.0,0.0002,2]
[374362306,1753279843506,-460.0,0.0002,2]
[374362307,1753279843515,-4461.85,0.0002,2]
[374362309,1753279843525,-214.79318456,0.0002,2]
[374362311,1753279843535,-460.0,0.0002,2]
[374362313,1753279843544,-460.0,0.0002,2]
[374362315,1753279843553,-460.0,0.0002,2]
[374362317,1753279843562,-776.97,0.0002,2]
[374362319,1753279843572,-460.0,0.0002,2]
[374362321,1753279843581,-460.0,0.0002,2]
[374362323,1753279843591,-943.52,0.0002,2]
[374362325,1753279843600,-460.0,0.0002,2]
[374362327,1753279843610,-460.0,0.0002,2]
[374362329,1753279843619,-460.0,0.0002,2]
[374362330,1753279843628,-460.0,0.0002,2]
[374362332,1753279843638,-460.0,0.0002,2]
[374362334,1753279843647,-460.0,0.0002,2]
[374362336,1753279843657,-460.0,0.0002,2]
[374362338,1753279843667,-460.0,0.0002,2]
[374362340,1753279843677,-599.43,0.0002,2]
[374362342,1753279843689,-460.0,0.0002,2]
[374362344,1753279843699,-1021.86,0.0002,2]
[374362346,1753279843709,-460.0,0.0002,2]
[374362348,1753279843719,-301.48087753,0.0002,2]
[374362350,1753279843728,-280.33966964,0.0002,2]
[374362352,1753279843738,-460.0,0.0002,2]
[374362354,1753279843747,-460.0,0.0002,2]
[374362356,1753279843756,-460.0,0.0002,2]
[374362358,1753279843767,-662.95,0.0002,2]
[374362359,1753279843777,-644.9,0.0002,2]
[374362361,1753279843788,-206.21867172,0.00020173,2]
[374362363,1753279843799,-433.735963,0.00020187,2]
[374362365,1753279843809,-492.9,0.00020273,2]
[374362367,1753279843819,-460.0,0.00020273,2]
[374362369,1753279843828,-460.0,0.00020273,2]
[374362371,1753279843837,-774.0,0.00020273,2]
[374362373,1753279843847,-460.0,0.00020273,2]
[374362375,1753279843857,-460.0,0.00020273,2]
[374362377,1753279843866,-460.0,0.00020273,2]
[374362379,1753279843876,-460.0,0.00020273,2]
[374362381,1753279843885,-460.0,0.00020273,2]
[374362383,1753279843895,-528.7961412,0.00020273,2]
[374362385,1753279843905,-460.0,0.00020273,2]
[374362387,1753279843914,-460.0,0.00020273,2]
[374362389,1753279843924,-460.0,0.00020273,2]
[374362391,1753279843935,-460.0,0.00020273,2]
[374362393,1753279843944,-4461.85,0.00020273,2]
[374362394,1753279843953,-460.0,0.00020273,2]
[374362396,1753279843963,-460.0,0.00020273,2]
[374362398,1753279843972,-460.0,0.00020273,2]
[374362400,1753279843982,-776.97,0.00020273,2]
[374362402,1753279843991,-460.0,0.00020273,2]
[374362404,1753279844000,-460.0,0.00020273,2]
[374362406,1753279844010,-943.52,0.00020273,2]
[374362408,1753279844020,-460.0,0.00020273,2]
[374362410,1753279844029,-460.0,0.00020273,2]
[374362412,1753279844039,-460.0,0.00020273,2]
[374362414,1753279844048,-460.0,0.00020273,2]
[374362416,1753279844059,-460.0,0.00020273,2]
[374362418,1753279844068,-460.0,0.00020273,2]
[374362420,1753279844078,-460.0,0.00020273,2]
[374362422,1753279844087,-460.0,0.00020273,2]
[374362424,1753279844096,-1021.86,0.00020273,2]
[374362425,1753279844105,-460.0,0.00020273,2]
[374362427,1753279844115,-460.0,0.00020273,2]
[374362429,1753279844125,-460.0,0.00020273,2]
[374362431,1753279844134,-460.0,0.00020273,2]
[374362433,1753279844144,-662.95,0.00020273,2]
[374362435,1753279844153,-644.9,0.00020273,2]
[374362437,1753279844163,-858.87399471,0.00020401,2]
[374362439,1753279844173,-595.16,0.00020538,3]
[374362441,1753279844184,-492.9,0.00020547,2]
[374362443,1753279844193,-460.0,0.00020547,2]
[374362445,1753279844202,-460.0,0.00020547,2]
[374362447,1753279844212,-774.0,0.00020547,2]
[374362449,1753279844221,-460.0,0.00020547,2]
[374362451,1753279844230,-460.0,0.00020547,2]
[374362453,1753279844240,-460.0,0.00020547,2]
[374362455,1753279844249,-460.0,0.00020547,2]
[374362457,1753279844259,-460.0,0.00020547,2]
[374362458,1753279844268,-460.0,0.00020547,2]
[374362460,1753279844277,-481.65628734,0.00020547,2]
[374362462,1753279844287,-503.53235294,0.00020547,2]
[374362464,1753279844296,-460.0,0.00020547,2]
[374362466,1753279844306,-4461.85,0.00020547,2]
[374362468,1753279844315,-460.0,0.00020547,2]
[374362470,1753279844325,-776.97,0.00020547,2]
[374362472,1753279844335,-460.0,0.00020547,2]
[374362474,1753279844344,-460.0,0.00020547,2]
[374362476,1753279844354,-943.52,0.00020547,2]
[374362478,1753279844364,-460.0,0.00020547,2]
[374362480,1753279844374,-460.0,0.00020547,2]
[374362482,1753279844383,-460.0,0.00020547,2]
[374362484,1753279844393,-460.0,0.00020547,2]
[374362486,1753279844403,-460.0,0.00020547,2]
[374362488,1753279844412,-460.0,0.00020547,2]
[374362490,1753279844427,-460.0,0.00020547,2]
[374362492,1753279844438,-1021.86,0.00020547,2]
[374362493,1753279844448,-460.0,0.00020547,2]
[374362495,1753279844458,-460.0,0.00020547,2]
[374362497,1753279844468,-460.0,0.00020547,2]
[374362499,1753279844477,-460.0,0.00020547,2]
[374362501,1753279844487,-662.95,0.00020547,2]
[374362503,1753279844499,-644.9,0.00020547,2]
[374362505,1753279844508,-178.72319565,0.00020696,2]
[374362507,1753279844519,-875.636,0.00020696,2]
[374362509,1753279844528,-160.0,0.000207,2]
[374362511,1753279844537,-526.15909479,0.00020749,2]
[374362513,1753279844547,-12622.36869388,0.00020749,2]
[374362515,1753279844556,-160.0,0.00020749,2]
[374362517,1753279844566,-160.0,0.00020749,2]
[374362519,1753279844575,-160.0,0.00020749,2]
[374362521,1753279844584,-476.696448,0.00020749,2]
[374362523,1753279844594,-160.0,0.00020749,2]
[374362525,1753279844603,-231.11583447,0.00020749,2]
[374362526,1753279844612,-215.84326551,0.00020749,2]
[374362528,1753279844622,-160.0,0.00020749,2]
[374362530,1753279844631,-840.06856235,0.00020749,2]
[374362532,1753279844641,-160.0,0.00020749,2]
[374362534,1753279844651,-160.0,0.00020749,2]
[374362536,1753279844660,-492.9,0.00020821,2]
[374362538,1753279844670,-460.0,0.00020821,2]
[374362540,1753279844682,-460.0,0.00020821,2]
[374362542,1753279844691,-774.0,0.00020821,2]
[374362544,1753279844701,-460.0,0.00020821,2]
[374362546,1753279844710,-460.0,0.00020821,2]
[374362548,1753279844720,-460.0,0.00020821,2]
[374362550,1753279844729,-460.0,0.00020821,2]
[374362551,1753279844739,-460.0,0.00020821,2]
[374362553,1753279844748,-542.58014295,0.00020821,2]
[374362555,1753279844757,-4461.85,0.00020821,2]
[374362557,1753279844767,-460.0,0.00020821,2]
[374362559,1753279844776,-776.97,0.00020821,2]
[374362561,1753279844786,-460.0,0.00020821,2]
[374362563,1753279844796,-460.0,0.00020821,2]
[374362565,1753279844806,-943.52,0.00020821,2]
[374362567,1753279844815,-460.0,0.00020821,2]
[374362569,1753279844825,-460.0,0.00020821,2]
[374362570,1753279844834,-460.0,0.00020821,2]
[374362572,1753279844843,-460.0,0.00020821,2]
[374362574,1753279844853,-460.0,0.00020821,2]
[374362576,1753279844863,-460.0,0.00020821,2]
[374362578,1753279844872,-460.0,0.00020821,2]
[374362580,1753279844882,-1021.86,0.00020821,2]
[374362582,1753279844891,-387.24447499,0.00020821,2]
[374362584,1753279844901,-534.64,0.00020821,2]
[374362586,1753279844911,-460.0,0.00020821,2]
[374362588,1753279844920,-460.0,0.00020821,2]
[374362590,1753279844932,-662.95,0.00020821,2]
[374362592,1753279844943,-644.9,0.00020821,2]
[374362594,1753279844952,-500.0,0.00020891,2]
[374362595,1753279844961,-492.9,0.00021095,2]
[374362597,1753279844970,-460.0,0.00021095,2]
[374362599,1753279844980,-460.0,0.00021095,2]
[374362601,1753279844989,-774.0,0.00021095,2]
[374362603,1753279844998,-460.0,0.00021095,2]
[374362605,1753279845008,-460.0,0.00021095,2]
[374362607,1753279845018,-460.0,0.00021095,2]
[374362609,1753279845027,-4461.85,0.00021095,2]
[374362611,1753279845037,-460.0,0.00021095,2]
[374362613,1753279845046,-776.97,0.00021095,2]
[374362615,1753279845056,-460.0,0.00021095,2]
[374362617,1753279845066,-460.0,0.00021095,2]
[374362619,1753279845075,-943.52,0.00021095,2]
[374362621,1753279845085,-460.0,0.00021095,2]
[374362623,1753279845094,-460.0,0.00021095,2]
[374362625,1753279845103,-460.0,0.00021095,2]
[374362626,1753279845113,-460.0,0.00021095,2]
[374362629,1753279845123,-460.0,0.00021095,2]
[374362630,1753279845133,-460.0,0.00021095,2]
[374362632,1753279845142,-460.0,0.00021095,2]
[374362634,1753279845152,-1021.86,0.00021095,2]
[374362636,1753279845162,-460.0,0.00021095,2]
[374362638,1753279845171,-537.26685408,0.00021095,2]
[374362640,1753279845182,-662.95,0.00021095,2]
[374362642,1753279845192,-260.0,0.00021248,2]
[374362644,1753279845201,-500.0,0.00021264,2]
[374362646,1753279845212,-858.87399471,0.0002135,2]
[374362648,1753279845221,-492.9,0.00021369,2]
[374362650,1753279845231,-460.0,0.00021369,2]
[374362652,1753279845240,-460.0,0.00021369,2]
[374362654,1753279845249,-774.0,0.00021369,2]
[374362656,1753279845258,-599.29552292,0.00021369,2]
[374362658,1753279845268,-460.0,0.00021369,2]
[374362660,1753279845277,-460.0,0.00021369,2]
[374362662,1753279845287,-4461.85,0.00021369,2]
[374362663,1753279845296,-460.0,0.00021369,2]
[374362665,1753279845305,-776.97,0.00021369,2]
[374362667,1753279845315,-412.05398865,0.00021369,2]
[374362669,1753279845324,-943.52,0.00021369,2]
[374362671,1753279845334,-460.0,0.00021369,2]
[374362673,1753279845344,-460.0,0.00021369,2]
[374362675,1753279845353,-460.0,0.00021369,2]
[374362677,1753279845363,-460.0,0.00021369,2]
[374362680,1753279845373,-460.0,0.00021369,2]
[374362682,1753279845382,-460.0,0.00021369,2]
[374362683,1753279845391,-460.0,0.00021369,2]
[374362685,1753279845401,-1021.86,0.00021369,2]
[374362687,1753279845411,-314.31863649,0.00021369,2]
[374362689,1753279845423,-662.95,0.00021369,2]
[374362691,1753279845438,-618.52113841,0.00021439,2]
[374362693,1753279845448,-287.5,0.00021485,5]
[374362695,1753279845458,-492.9,0.00021643,2]
[374362697,1753279845468,-460.0,0.00021643,2]
[374362700,1753279845477,-460.0,0.00021643,2]
[374362702,1753279845487,-774.0,0.00021643,2]
[374362704,1753279845496,-460.0,0.00021643,2]
[374362706,1753279845507,-460.0,0.00021643,2]
[374362708,1753279845517,-4461.85,0.00021643,2]
[374362710,1753279845527,-460.0,0.00021643,2]
[374362712,1753279845537,-776.97,0.00021643,2]
[374362714,1753279845546,-943.52,0.00021643,2]
[374362716,1753279845556,-460.0,0.00021643,2]
[374362718,1753279845566,-460.0,0.00021643,2]
[374362719,1753279845575,-460.0,0.00021643,2]
[374362721,1753279845585,-560.55246789,0.00021643,2]
[374362722,1753279845595,-460.0,0.00021643,2]
[374362725,1753279845605,-154.70710293,0.00021643,2]
[374362726,1753279845615,-460.0,0.00021643,2]
[374362727,1753279845624,-1021.86,0.00021643,2]
[374362728,1753279845633,-662.95,0.00021643,2]
[374362729,1753279845643,-360.0,0.00021796,2]
[374362730,1753279845652,-287.5,0.00021813,5]
[374362731,1753279845662,-1021.27119551,0.0002188,2]
[374362732,1753279845671,-172.96642639,0.00021916,2]
[374362733,1753279845683,-492.9,0.00021917,2]
[374362734,1753279845692,-460.0,0.00021917,2]
[374362735,1753279845702,-460.0,0.00021917,2]
[374362736,1753279845711,-774.0,0.00021917,2]
[374362737,1753279845720,-241.48190739,0.00021917,2]
[374362738,1753279845730,-460.0,0.00021917,2]
[374362739,1753279845739,-4461.85,0.00021917,2]
[374362740,1753279845749,-460.0,0.00021917,2]
[374362741,1753279845758,-776.97,0.00021917,2]
[374362742,1753279845768,-943.52,0.00021917,2]
[374362743,1753279845777,-460.0,0.00021917,2]
[374362744,1753279845786,-460.0,0.00021917,2]
[374362745,1753279845796,-242.98724148,0.00021917,2]
[374362746,1753279845806,-460.0,0.00021917,2]
[374362747,1753279845816,-460.0,0.00021917,2]
[374362748,1753279845825,-1021.86,0.00021917,2]
[374362750,1753279845835,-662.95,0.00021917,2]
[374362752,1753279845844,-205.0,0.0002195,2]
[374362754,1753279845854,-12622.36869388,0.00022,7]
[374362755,1753279845863,-211.815529,0.00022,3]
[374362757,1753279845873,-211.815529,0.00022,3]
[374362759,1753279845882,-1213.96,0.00022,7]
[374362762,1753279845891,-24686.40005265,0.00022122,2]
[374362763,1753279845901,-151.0,0.00022122,2]
[374362765,1753279845910,-151.0,0.00022122,2]
[374362767,1753279845920,-151.0,0.00022122,2]
[374362770,1753279845932,-151.0,0.00022122,2]
[374362771,1753279845941,-151.0,0.00022122,2]
[374362773,1753279845951,-151.0,0.00022122,2]
[374362775,1753279845960,-151.0,0.00022122,2]
[374362777,1753279845969,-151.0,0.00022122,2]
[374362779,1753279845979,-215.0738,0.00022122,2]
[374362781,1753279845988,-151.0,0.00022122,2]
[374362783,1753279845997,-151.0,0.00022122,2]
[374362785,1753279846007,-151.0,0.00022122,2]
[374362787,1753279846016,-151.0,0.00022122,2]
[374362789,1753279846026,-151.0,0.00022122,2]
[374362791,1753279846035,-151.0,0.00022122,2]
[374362793,1753279846045,-151.0,0.00022122,2]
[374362795,1753279846054,-151.0,0.00022122,2]
[374362797,1753279846063,-151.0,0.00022122,2]
[374362799,1753279846073,-151.0,0.00022122,2]
[374362801,1753279846082,-151.0,0.00022122,2]
[374362803,1753279846091,-151.0,0.00022122,2]
[374362805,1753279846101,-287.5,0.00022142,5]
[374362807,1753279846111,-500.0,0.00022162,2]
[374362809,1753279846120,-500.0,0.00022162,2]
[374362811,1753279846129,-156.64231511,0.00022173,2]
[374362813,1753279846139,-492.9,0.00022191,2]
[374362815,1753279846147,-460.0,0.00022191,2]
[374362816,1753279846156,-460.0,0.00022191,2]
[374362818,1753279846166,-774.0,0.00022191,2]
[374362821,1753279846175,-185.80530974,0.00022191,2]
[374362822,1753279846187,-4461.85,0.00022191,2]
[374362824,1753279846196,-460.0,0.00022191,2]
[374362826,1753279846206,-776.97,0.00022191,2]
[374362828,1753279846215,-943.52,0.00022191,2]
[374362830,1753279846225,-460.0,0.00022191,2]
[374362832,1753279846235,-460.0,0.00022191,2]
[374362834,1753279846245,-460.0,0.00022191,2]
[374362836,1753279846254,-460.0,0.00022191,2]
[374362838,1753279846264,-1021.86,0.00022191,2]
[374362840,1753279846273,-662.95,0.00022191,2]
[374362843,1753279846283,-42038.53,0.000222,2]
[374362844,1753279846292,-205.0,0.0002227,2]
[374362847,1753279846302,-858.87399471,0.00022299,2]
[374362849,1753279846311,-460.0,0.00022344,2]
[374362850,1753279846320,-500.0,0.0002236,2]
[374362853,1753279846330,-492.9,0.00022465,2]
[374362855,1753279846340,-460.0,0.00022465,2]
[374362856,1753279846349,-460.0,0.00022465,2]
[374362858,1753279846359,-774.0,0.00022465,2]
[374362860,1753279846368,-4461.85,0.00022465,2]
[374362862,1753279846378,-460.0,0.00022465,2]
[374362864,1753279846387,-776.97,0.00022465,2]
[374362866,1753279846396,-943.52,0.00022465,2]
[374362868,1753279846406,-460.0,0.00022465,2]
[374362870,1753279846416,-460.0,0.00022465,2]
[374362872,1753279846428,-372.00123425,0.00022465,2]
[374362874,1753279846440,-460.0,0.00022465,2]
[374362876,1753279846449,-2252.76,0.00022465,2]
[374362878,1753279846460,-1021.86,0.00022465,2]
[374362880,1753279846469,-662.95,0.00022465,2]
[374362882,1753279846479,-287.5,0.0002247,5]
[374362884,1753279846488,-429.674968,0.00022493,2]
[374362886,1753279846499,-649.02,0.00022499,2]
[374362888,1753279846509,-600.45,0.000225,2]
[374362890,1753279846518,-649.02,0.00022507,2]
[374362892,1753279846528,-519.22,0.00022507,2]
[374362894,1753279846537,-527.14,0.00022538,6]
[374362896,1753279846546,-205.0,0.0002258,2]
[374362898,1753279846555,-649.03,0.00022599,5]
[374362899,1753279846564,-649.03,0.00022607,7]
[374362901,1753279846574,-519.22,0.00022607,2]
[374362903,1753279846583,-527.14,0.00022638,3]
[374362905,1753279846592,-158.80662251,0.00022674,2]
[374362907,1753279846601,-519.22,0.00022707,5]
[374362909,1753279846611,-527.14,0.00022738,2]
[374362911,1753279846621,-492.9,0.00022739,2]
[374362913,1753279846631,-151.0,0.00022739,7]
[374362915,1753279846641,-460.0,0.00022739,2]
[374362917,1753279846651,-460.0,0.00022739,2]
[374362919,1753279846660,-774.0,0.00022739,2]
[374362921,1753279846670,-4461.85,0.00022739,2]
[374362923,1753279846679,-460.0,0.00022739,2]
[374362925,1753279846690,-776.97,0.00022739,2]
[374362927,1753279846699,-943.52,0.00022739,2]
[374362929,1753279846709,-460.0,0.00022739,2]
[374362944,1753279846841,-460.0,0.00022739,2]
[374362946,1753279846851,-460.0,0.00022739,2]
[374362948,1753279846861,-1021.86,0.00022739,2]
[374362950,1753279846871,-662.95,0.00022739,2]
[374362952,1753279846880,-648.0,0.00022777,2]
[374362954,1753279846889,-2157.0,0.00022777,2]
[374362956,1753279846899,-287.5,0.00022799,6]